bitfinex/quotes_SOLUSD_20250815
["timestamp","ask_amount","ask_price","bid_price","bid_amount"]
[1755266370263,5.94579542,190.63,190.6,26.0]
[1755266370596,4.13543318,190.62,190.57,0.03]
[1755266370796,3.43516289,190.61,190.57,0.03]
[1755266371088,0.7,190.62,190.57,0.03]
[1755266371267,4.13526861,190.62,190.57,0.03]
[1755266371860,8.68152559,190.62,190.57,0.03]
[1755266372060,0.7,190.61,190.57,0.03]
[1755266372701,4.13526861,190.63,190.57,0.03]
[1755266372985,0.7,190.64,190.57,0.03]
[1755266373894,5.94554923,190.64,190.57,0.03]
[1755266374585,137.84554923,190.64,190.57,0.03]
[1755266374777,1.3557205,190.63,190.57,0.03]
[1755266374980,0.7,190.63,190.57,0.03]
[1755266375295,4.13472989,190.63,190.57,0.03]
[1755266375463,0.7,190.63,190.57,0.03]
[1755266376389,4.13565734,190.63,190.57,0.03]
[1755266376593,9.38148109,190.63,190.57,0.03]
[1755266376891,4.13565734,190.63,190.57,0.03]
[1755266377194,131.9,190.62,190.57,0.03]
[1755266377871,132.6,190.62,190.57,0.03]
[1755266378377,0.7,190.61,190.57,0.03]
[1755266378687,132.6,190.67,190.57,20.38363121]
[1755266378993,4.13921279,190.66,190.57,15.13621557]
[1755266379284,0.76,190.65,190.57,15.13621557]
[1755266379656,0.06,190.63,190.57,0.03]
[1755266381998,0.7,190.62,190.57,0.03]
[1755266382295,0.7,190.61,190.57,0.03]
[1755266382495,0.7,190.6,190.57,0.03]
[1755266382663,0.06,190.63,190.57,0.03]
[1755266382997,0.7,190.62,190.57,0.03]
[1755266383180,0.06,190.63,190.57,0.03]
[1755266383563,0.76,190.63,190.57,0.03]
[1755266384470,4.19921279,190.63,190.57,0.03]
[1755266384687,0.76,190.63,190.57,0.03]
[1755266384865,0.7,190.62,190.57,0.03]
[1755266385381,0.68,190.61,190.57,0.03]
[1755266385558,0.06,190.63,190.57,0.03]
[1755266385766,0.68,190.6,190.57,0.03]
[1755266386195,3.49921279,190.63,190.57,0.03]
[1755266386678,0.68,190.62,190.57,0.03]
[1755266387991,0.68,190.61,190.57,0.03]
[1755266388300,0.68,190.6,190.57,0.03]
[1755266388602,0.06,190.63,190.57,0.03]
[1755266388907,0.68,190.62,190.57,0.03]
[1755266389204,0.06,190.63,190.57,0.03]
[1755266389205,0.68,190.61,190.57,0.03]
[1755266389875,131.96,190.63,190.57,0.03]
[1755266389876,0.06,190.63,190.57,0.03]
[1755266390074,0.06,190.63,190.57,0.36789658]
[1755266390803,0.06,190.63,190.62,26.0]
[1755266391220,0.06,190.63,190.62,41.10621557]
[1755266391393,0.06,190.65,190.63,15.10621557]
[1755266391592,0.06,190.65,190.64,0.33758591]
[1755266392907,0.06,190.65,190.63,19.7552689]
[1755266393120,0.06,190.65,190.63,30.31146742]
[1755266393446,0.06,190.65,190.63,26.0]
[1755266394613,0.06,190.65,190.63,31.24572308]
[1755266394841,0.06,190.65,190.64,15.44380148]
[1755266395420,0.06,190.65,190.64,17.54414548]
[1755266395738,0.06,190.68,190.67,41.10621557]
[1755266397833,1e-08,190.68,190.67,41.10621557]
[1755266400265,0.68000001,190.68,190.57,0.03]
[1755266400421,26.0,190.65,190.57,0.03]
[1755266400621,26.0,190.57,190.52,2.02876445]
[1755266400956,26.0,190.53,190.4,0.72]
[1755266401155,0.65609909,190.52,190.4,0.72]
[1755266401319,15.10621557,190.53,190.44,693.74963291]
[1755266401658,0.65603022,190.54,190.44,693.74963291]
[1755266401659,5.97271351,190.52,190.44,693.02963291]
[1755266401861,4.07408524,190.52,190.44,693.02963291]
[1755266402371,30.07408524,190.52,190.44,693.02963291]
[1755266402533,30.07408524,190.52,190.44,693.74963291]
[1755266402731,30.07408524,190.52,190.44,693.02963291]
[1755266403476,47.07320888,190.52,190.44,693.02963291]
[1755266403761,45.18030081,190.52,190.44,693.02963291]
[1755266403972,4.07408524,190.52,190.44,693.02963291]
[1755266404261,0.65609909,190.52,190.44,693.02963291]
[1755266404427,4.0739131,190.57,190.44,693.02963291]
[1755266404629,4.24226161,190.53,190.44,693.02963291]
[1755266404828,50.86118845,190.52,190.44,693.02963291]
[1755266405058,30.07408524,190.52,190.44,693.02963291]
[1755266405433,21.07362714,190.52,190.44,693.02963291]
[1755266405637,5.96741157,190.52,190.44,693.02963291]
[1755266406039,30.07401637,190.54,190.45,0.72]
[1755266406248,15.76231466,190.52,190.44,693.02963291]
[1755266406466,40.20828171,190.52,190.44,693.02963291]
[1755266406630,77.07223567,190.52,190.44,693.02963291]
[1755266406833,81.31449728,190.52,190.44,693.02963291]
[1755266407046,85.09577784,190.52,190.44,693.02963291]
[1755266407236,33.41798615,190.52,190.47,0.72]
[1755266407669,33.41798615,190.52,190.44,693.02963291]
[1755266407670,29.28,190.52,190.51,0.75]
[1755266407829,0.6557549,190.62,190.51,26.75]
[1755266408028,3.40628156,190.64,190.52,5.96857721]
[1755266408233,3.40628156,190.64,190.55,26.0]
[1755266408506,4.74200206,190.63,190.51,0.03]
[1755266408642,4.74200206,190.63,190.44,693.02963291]
[1755266408643,26.0,190.56,190.44,693.02963291]
[1755266408853,15.10621557,190.54,190.44,693.02963291]
[1755266409052,4.06234622,190.53,190.44,693.02963291]
[1755266409371,4.08628156,190.52,190.44,693.02963291]
[1755266409568,3.40628156,190.52,190.44,693.02963291]
[1755266409803,26.68,190.57,190.45,0.72]
[1755266409964,0.68,190.54,190.45,0.72]
[1755266410172,0.65606466,190.53,190.44,693.02963291]
[1755266410488,15.78621557,190.52,190.44,693.02963291]
[1755266410671,4.74241509,190.51,190.44,693.02963291]
[1755266411367,15.78621557,190.5,190.44,693.02963291]
[1755266411572,4.06248398,190.49,190.44,693.02963291]
[1755266411799,0.68,190.48,190.44,693.02963291]
[1755266411971,0.65623687,190.48,190.44,693.02963291]
[1755266412289,0.68,190.51,190.44,693.02963291]
[1755266412484,15.76238354,190.5,190.44,693.02963291]
[1755266412699,3.39625275,190.49,190.44,693.02963291]
[1755266413000,0.65623687,190.48,190.44,693.02963291]
[1755266413175,0.65616797,190.5,190.44,693.02963291]
[1755266413691,0.65616797,190.5,190.44,693.74963291]
[1755266414058,4.05238628,190.51,190.44,693.02963291]
[1755266414261,0.6559958,190.55,190.45,0.72]
[1755266414589,15.10621557,190.51,190.44,693.02963291]
[1755266414752,4.05091022,190.5,190.44,693.02963291]
[1755266415267,0.65616797,190.5,190.44,693.02963291]
[1755266415464,3.39474225,190.51,190.45,0.68]
[1755266415668,0.65596137,190.56,190.45,0.68]
[1755266416063,4.16796145,190.56,190.45,0.68]
[1755266416265,43.66150615,190.55,190.44,693.02963291]
[1755266416494,41.10621557,190.5,190.44,693.02963291]
[1755266416803,25.10621557,190.45,190.44,634.66430185]
[1755266416966,34.15186464,190.45,190.44,273.24421244]
[1755266417167,34.15186464,190.45,190.44,230.02307179]
[1755266417696,73.0620961,190.45,190.44,116.98593049]
[1755266417876,73.71843634,190.45,190.44,74.3735482]
[1755266418073,73.71843634,190.45,190.44,36.23378224]
[1755266418267,63.71843634,190.45,190.44,36.23378224]
[1755266418487,44.85197705,190.45,190.44,36.23378224]
[1755266418699,59.95819262,190.45,190.44,36.23378224]
[1755266418904,39.95819262,190.45,190.44,36.23378224]
[1755266419099,29.30185238,190.45,190.44,36.23378224]
[1755266419300,63.71194303,190.45,190.44,36.23378224]
[1755266419502,60.63688205,190.45,190.44,36.23378224]
[1755266419702,41.4581386,190.45,190.44,36.23378224]
[1755266420099,56.56435417,190.45,190.44,9.52701637]
[1755266420414,56.56435417,190.45,190.38,0.03]
[1755266420415,5.25210084,190.4,190.38,0.03]
[1755266420711,47.64805323,190.39,190.38,0.03]
[1755266420920,55.9619661,190.39,190.38,0.03]
[1755266421073,40.85575053,190.39,190.38,0.03]
[1755266421271,55.9619661,190.39,190.38,0.03]
[1755266421702,55.95054467,190.39,190.38,0.03]
[1755266422897,59.31947515,190.39,190.38,1e-08]
[1755266423099,41.10621557,190.36,190.27,0.51117444]
[1755266423307,15.10621557,190.31,190.27,0.51117444]
[1755266423521,15.10621557,190.28,190.27,0.51117444]
[1755266423813,1.87386915,190.28,190.27,1e-08]
[1755266424111,35.58908761,190.28,190.27,1e-08]
[1755266424281,44.20656862,190.28,190.27,1e-08]
[1755266424476,15.10621557,190.26,190.25,1e-08]
[1755266424674,20.99427051,190.26,190.25,1e-08]
[1755266424905,56.96081686,190.26,190.25,1e-08]
[1755266425138,48.04753358,190.26,190.25,1e-08]
[1755266425429,15.10621557,190.15,190.09,0.68]
[1755266425724,26.0,190.2,190.09,0.68]
[1755266425725,2.53127947,190.14,190.09,0.68]
[1755266425901,2.53127947,190.14,190.03,4.48989967]
[1755266425902,1.86177344,190.13,190.1,0.68]
[1755266426102,0.65734118,190.16,190.11,0.68]
[1755266426314,26.0,190.13,190.12,0.68]
[1755266426530,2.51948828,190.13,190.12,0.68]
[1755266426732,7.86182565,190.16,190.06,25.68]
[1755266426912,15.10621557,190.13,190.03,4.48989967]
[1755266427236,2.51654639,190.12,189.97,5.26378006]
[1755266427537,16.96528248,190.11,189.92,2.74527962]
[1755266427742,15.10621557,190.09,189.92,2.74527962]
[1755266428029,2.51227692,190.08,189.94,15.10621557]
[1755266428229,0.65761784,190.08,189.94,15.10621557]
[1755266428422,15.10621557,190.12,189.94,15.10621557]
[1755266428626,2.50970092,190.11,190.01,0.68]
[1755266428927,1.85259878,190.1,190.01,0.68]
[1755266429233,0.65758325,190.09,190.01,0.68]
[1755266429410,15.10621557,190.06,190.01,0.68]
[1755266429606,0.65772165,190.05,189.97,0.68]
[1755266429845,0.65772165,190.05,189.92,2.74527958]
[1755266430047,0.65772165,190.05,190.01,0.68]
[1755266430213,0.65772165,190.05,190.02,0.68]
[1755266430535,26.0,190.07,189.92,8.01065385]
[1755266430739,0.65768704,190.06,190.02,0.68]
[1755266431052,26.0,190.06,189.99,0.68]
[1755266431227,0.65772165,190.05,189.99,0.68]
[1755266431427,0.65772165,190.05,189.97,0.68]
[1755266431730,0.65772165,190.05,190.01,0.68]
[1755266432033,0.65772165,190.05,189.98,0.68]
[1755266432416,0.65772165,190.05,190.0,2038.49974136]
[1755266432745,0.65772165,190.05,190.01,0.68]
[1755266432905,0.66869997,190.06,190.02,0.68]
[1755266433332,0.65772165,190.05,190.02,0.68]
[1755266433522,0.66869997,190.06,190.03,0.68]
[1755266433928,0.65772165,190.05,190.0,2038.49974136]
[1755266434243,0.65772165,190.05,190.01,0.68]
[1755266434446,0.65772165,190.05,190.02,0.68]
[1755266434735,0.66869997,190.06,190.0,2043.08266836]
[1755266434922,1.32642162,190.05,190.0,2038.49974136]
[1755266435123,1.32642162,190.05,190.01,0.68]
[1755266435124,0.66869997,190.05,190.01,0.68]
[1755266436008,0.66869997,190.05,190.02,0.68]
[1755266436208,0.66869997,190.05,190.03,0.68]
[1755266436408,0.66869997,190.05,190.04,0.68]
[1755266437530,0.66869997,190.05,190.01,0.68]
[1755266437845,0.66869997,190.05,190.02,0.68]
[1755266438029,0.66869997,190.05,190.03,0.68]
[1755266438219,0.66869997,190.05,190.04,0.68]
[1755266440248,16.446215,190.2,190.05,5.26177321]
[1755266440449,17.60922002,190.19,190.06,0.68]
[1755266440622,15.76345306,190.19,190.06,0.68]
[1755266440816,42.43345306,190.19,190.06,0.68]
[1755266441028,0.65723749,190.19,190.07,26.0]
[1755266441222,0.65723749,190.19,190.09,26.0]
[1755266441627,0.65723749,190.19,190.1,0.68]
[1755266441834,0.66869997,190.2,190.1,0.68]
[1755266442019,0.65723749,190.19,190.1,0.68]
[1755266442419,0.66869997,190.2,190.11,26.0]
[1755266442646,0.65723749,190.19,190.12,0.68]
[1755266442866,0.66869997,190.2,190.12,0.68]
[1755266443834,0.66869997,190.2,190.13,5.25955924]
[1755266444039,0.66869997,190.2,190.14,0.68]
[1755266444644,1.86191103,190.19,190.14,0.68]
[1755266444818,1.86191103,190.19,190.15,0.68]
[1755266445026,2.51918308,190.18,190.11,0.68]
[1755266445234,1.86191103,190.17,190.11,0.68]
[1755266445434,2.51925221,190.16,190.11,0.68]
[1755266445624,1.86191103,190.15,190.11,0.68]
[1755266446220,0.65734118,190.16,190.08,0.71]
[1755266446545,0.65737575,190.15,190.05,0.71]
[1755266446955,0.65737575,190.15,190.0,2037.84974136]
[1755266447133,5.89163346,190.14,190.02,0.71]
[1755266447321,15.10621557,190.12,190.02,0.71]
[1755266447529,4.68636234,190.11,190.02,0.71]
[1755266448220,76.99811791,190.1,190.0,2037.84974136]
[1755266448425,4.68643152,190.09,190.0,2037.84974136]
[1755266448625,15.10621557,190.07,190.0,2037.84974136]
[1755266448839,4.00653531,190.06,190.0,2037.84974136]
[1755266449156,15.78621557,190.05,190.0,2037.84974136]
[1755266449360,4.00660453,190.04,190.0,2037.84974136]
[1755266449645,0.68,190.03,190.0,2037.84974136]
[1755266449826,15.10621557,190.01,190.0,2037.84974136]
[1755266450029,19.13506384,190.01,190.0,2037.84974136]
[1755266450434,50.99779239,190.01,190.0,2037.84974136]
[1755266450638,51.66649236,190.01,190.0,2037.84974136]
[1755266452221,52.32435247,190.01,190.0,2037.84974136]
[1755266452832,51.64435247,190.01,190.0,2037.84974136]
[1755266453164,51.66649236,190.01,190.0,2037.84974136]
[1755266453361,52.32435247,190.01,190.0,2037.84974136]
[1755266453529,36.5381369,190.01,190.0,2037.84974136]
[1755266454136,34.01754824,190.01,190.0,2037.84974136]
[1755266454335,34.01754824,190.01,190.0,2038.55974136]
[1755266454541,0.65761784,190.08,190.0,2038.55974136]
[1755266454745,5.22602637,190.07,190.01,0.71]
[1755266455050,30.0,190.02,190.0,2037.84974136]
[1755266455225,30.0,190.02,190.01,0.71]
[1755266455732,0.65761784,190.08,190.0,2037.84974136]
[1755266455936,0.65761784,190.08,190.0,2038.55974136]
[1755266458640,0.65761784,190.08,190.0,2037.84974136]
[1755266458641,26.0,190.03,190.0,2037.84974136]
[1755266458841,1.36782549,190.02,190.0,2037.84974136]
[1755266459143,0.71,190.01,190.0,2037.84974136]
[1755266459552,0.65782549,190.02,190.0,2037.84974136]
[1755266460064,32.58626284,190.01,190.0,2037.84974136]
[1755266460482,47.69247841,190.01,190.0,2037.84974136]
[1755266460783,52.95535931,190.01,190.0,2037.84974136]
[1755266461196,78.95535931,190.01,190.0,2037.84974136]
[1755266461465,56.71881518,190.01,190.0,1955.15324213]
[1755266461965,63.82181534,190.01,190.0,1926.58550991]
[1755266462137,63.82181534,190.01,190.0,1872.4294894]
[1755266462334,63.82181534,190.01,190.0,1841.08252363]
[1755266462660,73.82181534,190.01,190.0,1738.33213896]
[1755266462874,74.47967545,190.01,190.0,1671.42047711]
[1755266463045,74.47967545,190.01,190.0,1641.16354517]
[1755266463860,73.82181534,190.01,190.0,1641.16354517]
[1755266464235,73.82181534,190.01,190.0,1478.68376435]
[1755266464436,73.82181534,190.01,190.0,1424.22764045]
[1755266464659,78.62397039,190.01,190.0,1403.72696394]
[1755266464860,74.47967545,190.01,190.0,1392.19865251]
[1755266465252,74.47967545,190.01,190.0,1230.41890253]
[1755266465669,74.47435347,190.01,190.0,1230.41890253]
[1755266465867,44.47435347,190.01,190.0,1230.41890253]
[1755266466365,13.395257,190.01,190.0,1230.41890253]
[1755266466568,16.77610842,190.01,190.0,1231.12890253]
[1755266467244,4.82300016,190.01,190.0,1231.12890253]
[1755266467436,3.38617717,190.09,190.0,1230.41890253]
[1755266467645,0.71,190.07,190.0,1230.41890253]
[1755266467838,26.0,190.03,190.0,1230.41890253]
[1755266468152,5.26580641,190.02,190.0,1230.41890253]
[1755266468480,3.38617717,190.04,190.0,1230.41890253]
[1755266468771,4.04379501,190.08,190.0,1235.68200606]
[1755266468943,3.38617717,190.08,190.0,1235.68200606]
[1755266469151,3.38617717,190.13,190.01,15.44799574]
[1755266469332,3.38617717,190.12,190.01,15.44799574]
[1755266469533,3.38617717,190.14,190.01,15.44799574]
[1755266469757,4.04362207,190.13,190.0,1248.83990079]
[1755266469972,7.15087119,190.12,190.0,1248.83990079]
[1755266470138,4.7334935,190.14,190.0,1248.83990079]
[1755266470139,4.04369124,190.11,190.0,1248.83990079]
[1755266470347,3.38617717,190.1,190.0,1248.83990079]
[1755266470642,3.38617717,190.09,190.0,1235.68200606]
[1755266470841,4.7341013,190.11,190.0,1235.68200606]
[1755266471138,7.81183783,190.1,190.0,1230.41890253]
[1755266471356,7.15428918,190.09,190.0,1230.41890253]
[1755266471563,26.0,190.05,190.0,1230.41890253]
[1755266471768,4.04393343,190.04,190.0,1230.41890253]
[1755266471945,1.36779087,190.03,190.0,1230.41890253]
[1755266472141,7.15411503,190.02,190.0,1230.41890253]
[1755266472364,4.04403728,190.01,190.0,1230.41890253]
[1755266472554,0.65786011,190.01,190.0,1230.41890253]
[1755266472736,38.60065082,190.01,190.0,1230.41890253]
[1755266472942,3.38617717,190.01,190.0,1254.2678068]
[1755266473244,26.0,190.05,190.0,1230.41890253]
[1755266473443,23.84890427,190.01,190.0,1230.41890253]
[1755266473643,57.00364395,190.01,190.0,1230.41890253]
[1755266473844,72.10985952,190.01,190.0,1201.10054546]
[1755266474052,48.70339131,190.01,190.0,1131.78890886]
[1755266474258,79.36125142,190.01,190.0,1057.1585355]
[1755266474564,37.81259979,190.01,190.0,1057.1585355]
[1755266474742,64.12276998,190.01,190.0,1057.1585355]
[1755266474942,3.38617717,190.01,190.0,1057.1585355]
[1755266475159,4.04386421,190.06,190.0,1081.00743977]
[1755266475366,26.65768704,190.06,190.02,23.84890427]
[1755266475561,26.65768704,190.06,190.04,23.84890427]
[1755266475562,3.38617717,190.05,190.04,23.84890427]
[1755266475755,4.04376042,190.09,190.04,23.84890427]
[1755266475940,4.04376042,190.09,190.06,23.84890427]
[1755266475941,0.65758325,190.09,190.06,23.84890427]
[1755266476141,4.04365665,190.12,190.08,23.84890427]
[1755266476368,0.65747948,190.12,190.11,23.84890427]
[1755266476570,0.65730662,190.17,190.11,23.84890427]
[1755266476774,0.65727205,190.18,190.16,23.84890427]
[1755266476941,0.06,190.19,190.17,23.84890427]
[1755266477139,0.06,190.19,190.05,0.34104213]
[1755266477140,0.06,190.19,190.18,0.71]
[1755266477348,0.06,190.19,190.18,24.55890427]
[1755266477554,0.06,190.19,190.18,0.71]
[1755266477769,0.06,190.19,190.18,24.55890427]
[1755266478054,0.06,190.19,190.18,0.71]
[1755266478249,0.06,190.19,190.18,24.55890427]
[1755266478983,0.06,190.19,190.14,0.71]
[1755266479168,0.71723749,190.19,190.14,23.84890427]
[1755266479365,0.71723749,190.19,190.15,24.55890427]
[1755266479565,0.71723749,190.19,190.18,23.84890427]
[1755266479772,0.71723749,190.19,190.18,24.55890427]
[1755266479773,0.06,190.19,190.18,24.55890427]
[1755266480580,0.06,190.19,190.18,0.71]
[1755266480770,0.06,190.19,190.18,23.84890427]
[1755266481105,0.06,190.19,190.18,24.55890427]
[1755266481258,0.06,190.19,190.17,23.84890427]
[1755266481769,0.06,190.19,190.15,0.71]
[1755266482281,0.06,190.19,190.17,23.84890427]
[1755266482752,0.06,190.19,190.16,0.71]
[1755266483689,0.06,190.19,190.17,23.84890427]
[1755266483863,0.06,190.19,190.14,0.71]
[1755266484060,0.06,190.19,190.15,0.71]
[1755266484360,0.06,190.19,190.15,24.55890427]
[1755266484578,27.06364426,190.19,190.11,0.71]
[1755266484774,0.65727205,190.18,190.11,0.71]
[1755266485263,23.84890427,190.17,190.12,23.84890427]
[1755266485470,11.75882747,190.19,190.14,23.84890427]
[1755266485872,35.60773174,190.19,190.13,0.71]
[1755266486095,35.60773174,190.19,190.13,24.55890427]
[1755266486265,11.75882747,190.19,190.14,23.84890427]
[1755266486454,3.87197748,190.19,190.14,23.84890427]
[1755266486656,0.65727205,190.18,190.14,0.71]
[1755266486880,0.65727205,190.18,190.15,23.84890427]
[1755266487079,0.65727205,190.18,190.06,43.38]
[1755266487080,23.84890427,190.17,190.12,23.84890427]
[1755266487292,0.65734118,190.16,190.12,23.84890427]
[1755266487501,0.65734118,190.16,190.04,5.26179315]
[1755266487701,4.7457389,190.16,190.09,23.84890427]
[1755266487879,24.50624545,190.16,190.1,23.84890427]
[1755266488068,0.65734118,190.16,190.13,23.84890427]
[1755266488267,0.65737575,190.15,190.12,23.84890427]
[1755266488468,3.15523769,190.16,190.11,23.84890427]
[1755266488670,0.65737575,190.15,190.11,23.84890427]
[1755266489394,3.81257887,190.16,190.13,23.84890427]
[1755266489604,3.81257887,190.16,190.13,24.55890427]
[1755266489898,3.15523769,190.16,190.14,24.55890427]
[1755266490198,3.15523769,190.16,190.13,23.84890427]
[1755266490363,3.15523769,190.16,190.1,0.71]
[1755266490570,3.15523769,190.16,190.14,23.84890427]
[1755266490772,3.15523769,190.16,190.15,23.84890427]
[1755266490964,3.15506666,190.18,190.15,23.84890427]
[1755266491193,3.15506666,190.18,190.17,23.84890427]
[1755266491496,0.06,190.19,190.17,24.55890427]
[1755266491693,0.06,190.19,190.18,23.84890427]
[1755266491989,0.06,190.19,190.17,0.71]
[1755266492196,0.06,190.19,190.18,24.55890427]
[1755266492374,0.06,190.19,190.18,0.71]
[1755266492571,0.06,190.19,190.18,23.84890427]
[1755266492799,0.06,190.19,190.18,24.55890427]
[1755266493173,0.06,190.19,190.14,0.71]
[1755266493369,0.06,190.19,190.18,23.84890427]
[1755266493571,0.06,190.19,190.18,24.55890427]
[1755266493998,0.06,190.19,190.18,23.84890427]
[1755266494203,0.06,190.19,190.15,0.71]
[1755266494381,0.06,190.19,190.16,0.71]
[1755266494583,0.06,190.19,190.18,23.84890427]
[1755266494976,0.06,190.19,190.16,23.84890427]
[1755266495181,0.06,190.19,190.17,23.84890427]
[1755266495810,0.06,190.19,190.18,23.84890427]
[1755266495980,0.06,190.19,190.16,0.03]
[1755266496179,0.06,190.19,190.18,23.84890427]
[1755266497080,0.06,190.19,190.17,23.84890427]
[1755266497280,1.41723749,190.19,190.16,0.03]
[1755266497479,0.71723749,190.19,190.16,0.03]
[1755266497789,3.15490587,190.18,190.16,23.87890427]
[1755266498189,3.15490587,190.18,190.17,23.84890427]
[1755266498392,3.2147685,190.19,190.17,23.84890427]
[1755266498701,3.2147685,190.19,190.18,23.84890427]
[1755266499603,3.2147685,190.19,190.16,0.03]
[1755266499953,23.84890427,190.17,190.01,5.2628809]
[1755266500090,23.84890427,190.15,190.09,23.84890427]
[1755266500292,0.65727205,190.18,190.13,23.84890427]
[1755266500525,3.2147685,190.19,190.17,23.84890427]
[1755266500734,0.06,190.19,190.18,23.84890427]
[1755266500904,0.06,190.19,190.18,24.55890427]
[1755266501108,0.06,190.21,190.18,24.55890427]
[1755266501305,0.06,190.21,190.2,23.84890427]
[1755266501719,0.06,190.21,190.2,24.50890427]
[1755266502225,0.06,190.21,190.2,0.66]
[1755266502428,0.06,190.21,190.2,23.84890427]
[1755266503000,0.06,190.21,190.17,0.66]
[1755266503204,0.06,190.21,190.2,23.84890427]
[1755266504730,0.06,190.21,190.2,29.76652782]
[1755266504939,0.06,190.21,190.2,44.87274339]
[1755266505122,0.06,190.21,190.2,24.50890427]
[1755266505299,0.06,190.21,190.2,26.66]
[1755266505498,0.06,190.21,190.2,23.84890427]
[1755266506025,0.06,190.21,190.2,24.50890427]
[1755266507097,0.06,190.21,190.2,23.84890427]
[1755266507318,0.06,190.21,190.2,24.50890427]
[1755266508245,0.06,190.21,190.2,23.84890427]
[1755266508457,0.06,190.21,190.17,0.66]
[1755266508753,0.06,190.21,190.15,15.10621557]
[1755266508916,0.06,190.21,190.14,0.66]
[1755266509116,0.06,190.21,190.17,23.84890427]
[1755266509353,0.78,190.21,190.17,23.84890427]
[1755266509527,0.06,190.21,190.17,23.84890427]
[1755266509737,0.06,190.21,190.16,23.84890427]
[1755266510057,11.82042899,190.21,190.16,23.84890427]
[1755266510227,3.3854176,190.2,190.16,23.84890427]
[1755266510421,3.3854176,190.2,190.17,23.84890427]
[1755266510733,3.21440828,190.21,190.19,23.84890427]
[1755266510943,0.06,190.21,190.17,0.66]
[1755266511173,3.45319242,190.21,190.19,23.84890427]
[1755266511351,0.06,190.21,190.2,23.84890427]
[1755266512262,0.06,190.21,190.2,24.50890427]
[1755266512455,0.06,190.23,190.22,41.10621557]
[1755266512664,0.06,190.23,190.22,64.95511984]
[1755266513049,0.06,190.23,190.22,23.84890427]
[1755266513938,0.06,190.23,190.22,24.38890427]
[1755266514629,0.06,190.23,190.21,26.0]
[1755266514831,0.06,190.23,190.22,23.84890427]
[1755266515242,0.06,190.23,190.22,24.38890427]
[1755266516168,0.06,190.23,190.22,29.64597503]
[1755266516538,0.06,190.23,190.22,44.7521906]
[1755266517477,0.06,190.23,190.22,86.9721906]
[1755266517680,3.4036635,190.34,190.29,26.0]
[1755266517970,0.2,190.39,190.35,26.0]
[1755266518159,0.2,190.39,190.38,49.84890427]
[1755266518484,0.06,190.45,190.41,26.0]
[1755266518648,0.06,190.45,190.44,23.84890427]
[1755266518971,3.46340216,190.45,190.44,23.84890427]
[1755266519545,3.46362125,190.45,190.44,23.84890427]
[1755266519944,0.06,190.45,190.39,29.80242856]
[1755266520148,0.06,190.45,190.44,23.84890427]
[1755266520342,3.46727589,190.45,190.39,26.0]
[1755266520582,0.06,190.45,190.44,23.84890427]
[1755266520740,0.06,190.49,190.47,26.0]
[1755266521051,0.78,190.56,190.51,26.0]
[1755266521052,0.06,190.56,190.51,26.0]
[1755266521258,0.06,190.56,190.55,23.84890427]
[1755266521770,0.06,190.58,190.57,26.0]
[1755266521976,0.06,190.58,190.57,70.54057753]
[1755266522976,3.40052415,190.67,190.62,15.10621557]
[1755266523183,1e-08,190.68,190.66,23.84890427]
[1755266523360,1e-08,190.68,190.67,39.29249942]
[1755266523559,1e-08,190.68,190.67,23.84890427]
[1755266523868,0.06,190.72,190.71,41.10621557]
[1755266524042,0.56959634,190.77,190.76,41.10621557]
[1755266524248,0.06,190.81,190.8,26.0]
[1755266524473,0.06,190.81,190.8,64.95511984]
[1755266525052,0.06,190.81,190.8,23.84890427]
[1755266525479,0.06,190.81,190.8,38.95511984]
[1755266525651,4.02262905,190.92,190.81,15.10621557]
[1755266525652,3.14314018,190.9,190.81,15.10621557]
[1755266525853,3.86281611,190.92,190.81,65.45151188]
[1755266526049,3.1430068,190.9,190.87,23.84890427]
[1755266526252,1.37475878,190.91,190.81,83.16621557]
[1755266526253,0.65458734,190.96,190.89,23.84890427]
[1755266526550,12.37226497,190.95,190.79,0.33576028]
[1755266526780,0.72,190.94,190.8,42.06]
[1755266527077,0.6546902,190.93,190.8,57.16621557]
[1755266527279,0.72,190.92,190.8,15.10621557]
[1755266527499,0.72,190.92,190.84,15.10621557]